[Event "SUNWAY"]
[Date "2016.12.19"]
[Round "5.11"]
[White "Peralta, Fernando"]
[Black "Konguvel, Ponnuswamy"]
[Result "1-0"]
[WhiteElo "2574"]
[BlackElo "2417"]
[ECO "A05"]
[WhiteFed "ARG"]
[BlackFed "IND"]
[FCGameId "-934211009"]
[TimeControl "5400+30"]

1. Nf3 {[%clk 1:30:56]} Nf6 {[%clk 1:29:34]} 2. c4 {[%clk 1:31:14]} g6  {[%clk 1:29:52]} 3. Nc3 {[%clk 1:31:37]} Bg7 {[%clk 1:30:07]} 4. e4  {[%clk 1:32:01]} d6 {[%clk 1:30:23]} 5. d4 {[%clk 1:32:26]} O-O {[%clk 1:30:31]}  6. h3 {[%clk 1:32:45]} e5 {[%clk 1:30:15]} 7. d5 {[%clk 1:33:09]} a5  {[%clk 1:30:17]} 8. g4 {[%clk 1:33:23]} Na6 {[%clk 1:30:34]} 9. Be3  {[%clk 1:33:40]} Nc5 {[%clk 1:30:36]} 10. Nd2 {[%clk 1:33:59]} c6  {[%clk 1:29:25]} 11. Be2 {[%clk 1:31:44]} Bd7 {[%clk 1:27:43]} 12. g5  {[%clk 1:31:15]} Ne8 {[%clk 1:27:52]} 13. h4 {[%clk 1:30:48]} cxd5  {[%clk 1:21:53]} 14. exd5 {[%clk 1:27:43]} f5 {[%clk 0:57:23]} 15. gxf6  {[%clk 1:25:05]} Nxf6 {[%clk 0:57:41]} 16. h5 gxh5 {[%clk 0:45:10]} 17. Bxc5  {[%clk 1:02:26]} dxc5 {[%clk 0:45:35]} 18. Qc2 {[%clk 1:02:06]} e4  {[%clk 0:38:39]} 19. Ndxe4 {[%clk 0:59:49]} Nxe4 {[%clk 0:38:26]} 20. Nxe4  {[%clk 0:59:24]} Bf5 {[%clk 0:33:48]} 21. O-O-O {[%clk 0:49:44]} Bxe4  {[%clk 0:17:54]} 22. Qxe4 {[%clk 0:50:09]} Qg5+ {[%clk 0:16:38]} 23. f4  {[%clk 0:33:56]} Rxf4 {[%clk 0:14:15]} 24. Qe6+ {[%clk 0:34:12]} Rf7+  {[%clk 0:13:11]} 25. Kb1 {[%clk 0:33:45]} Qf6 {[%clk 0:08:22]} 26. Rd2  {[%clk 0:24:12]} Ra6 {[%clk 0:08:16]} 27. Qe8+ {[%clk 0:23:39]} Rf8  {[%clk 0:07:48]} 28. Qxh5 {[%clk 0:23:14]} h6 29. Bd3 {[%clk 0:09:29]} Rb6  {[%clk 0:04:31]} 30. Rhh2 {[%clk 0:09:55]} Qe5 {[%clk 0:02:46]} 31. Qxe5 Bxe5  32. Rhg2+ {[%clk 0:08:51]} Kf7 {[%clk 0:03:23]} 33. Rde2 {[%clk 0:08:17]} Bd4  {[%clk 0:03:22]} 34. Bf5 {[%clk 0:05:38]} Rf6 {[%clk 0:01:37]} 35. Be6+  {[%clk 0:02:55]} Ke8 {[%clk 0:02:06]} 36. Kc2 {[%clk 0:00:57]} Kd8  {[%clk 0:00:51]} 37. Kb3 {[%clk 0:00:57]} Rf2 {[%clk 0:01:07]} 38. Ka4  {[%clk 0:00:54]} Rxe2 {[%clk 0:00:42]} 39. Rxe2 {[%clk 0:01:21]} Kc7  {[%clk 0:01:03]} 40. Rh2 {[%clk 0:30:52]} b6 {[%clk 0:30:34]} 41. Rxh6  {[%clk 0:26:53]} Rf2 {[%clk 0:30:18]} 42. Rh7+ {[%clk 0:21:11]} Kd6  {[%clk 0:30:34]} 43. Bd7 {[%clk 0:14:46]} Rxb2 {[%clk 0:28:54]} 44. a3  {[%clk 0:15:07]} Rg2 {[%clk 0:19:34]} 45. Be8 {[%clk 0:12:03]} Bg7  {[%clk 0:17:38]} 46. Kb5 {[%clk 0:11:29]} Kc7 {[%clk 0:17:55]} 47. Ka6  {[%clk 0:10:44]} Rg4 {[%clk 0:16:09]} 48. a4 {[%clk 0:09:52]} Rg3  {[%clk 0:16:31]} 49. Bb5 {[%clk 0:09:52]} Rg5 {[%clk 0:15:11]} 50. Rh1  {[%clk 0:09:01]} Bf6 {[%clk 0:12:23]} 51. Rh6 {[%clk 0:07:49]} Bd8  {[%clk 0:05:03]} 52. Rxb6 {[%clk 0:06:49]} Rf5 {[%clk 0:05:16]} 53. Rb7+  {[%clk 0:07:03]} 1-0

[Event "SUNWAY"]
[Date "2016.12.19"]
[Round "5.12"]
[White "Dedebas, Emre Emin"]
[Black "Sunilduth Lyna, Narayanan"]
[Result "1/2-1/2"]
[WhiteElo "2358"]
[BlackElo "2541"]
[ECO "E10"]
[WhiteFed "TUR"]
[BlackFed "IND"]
[FCGameId "-1095182404"]
[TimeControl "5400+30"]

1. d4 {[%clk 1:30:56]} Nf6 {[%clk 1:30:53]} 2. c4 {[%clk 1:31:14]} e6  {[%clk 1:31:19]} 3. Nf3 {[%clk 1:31:40]} d5 {[%clk 1:31:45]} 4. g3  {[%clk 1:28:41]} Bb4+ {[%clk 1:31:56]} 5. Bd2 {[%clk 1:29:03]} Bd6  {[%clk 1:32:21]} 6. Bg2 {[%clk 1:29:22]} c6 {[%clk 1:32:46]} 7. Qc2  {[%clk 1:29:41]} Nbd7 {[%clk 1:32:52]} 8. O-O {[%clk 1:29:30]} O-O  {[%clk 1:33:04]} 9. Bg5 {[%clk 1:29:52]} h6 {[%clk 1:33:15]} 10. Bxf6  {[%clk 1:30:14]} Nxf6 {[%clk 1:33:37]} 11. Nbd2 {[%clk 1:30:40]} b6  {[%clk 1:32:28]} 12. e4 {[%clk 1:30:51]} Be7 {[%clk 1:32:52]} 13. e5  {[%clk 1:30:25]} Nd7 {[%clk 1:29:50]} 14. cxd5 {[%clk 1:30:29]} cxd5  {[%clk 1:30:15]} 15. Rfc1 {[%clk 1:24:02]} a5 {[%clk 1:21:46]} 16. Bf1  {[%clk 1:21:11]} Nb8 {[%clk 1:20:55]} 17. Bb5 {[%clk 1:20:15]} Ra7  {[%clk 1:18:27]} 18. Nf1 {[%clk 1:13:05]} Ba6 {[%clk 1:05:53]} 19. a4  {[%clk 0:52:17]} Bxb5 {[%clk 1:01:52]} 20. axb5 {[%clk 0:52:19]} Qd7  {[%clk 1:02:19]} 21. Qa4 {[%clk 0:33:48]} Rc8 {[%clk 0:57:37]} 22. Rxc8+  {[%clk 0:31:10]} Qxc8 {[%clk 0:58:03]} 23. Ne3 {[%clk 0:31:35]} Rc7  {[%clk 0:58:22]} 24. h4 {[%clk 0:31:11]} Rc1+ {[%clk 0:57:19]} 25. Kg2  {[%clk 0:31:22]} Rxa1 {[%clk 0:56:43]} 26. Qxa1 {[%clk 0:31:33]} Qd7  {[%clk 0:57:08]} 27. Qf1 {[%clk 0:31:25]} Qc7 {[%clk 0:50:37]} 28. Qd1  {[%clk 0:29:54]} Nd7 {[%clk 0:50:56]} 29. Ne1 {[%clk 0:24:32]} Nf8  {[%clk 0:32:43]} 30. Qc2 {[%clk 0:20:33]} Qxc2 {[%clk 0:28:07]} 31. N1xc2  {[%clk 0:20:46]} h5 {[%clk 0:28:14]} 32. f4 {[%clk 0:18:02]} f5 {[%clk 0:22:18]}  33. Kf3 {[%clk 0:13:51]} Kf7 {[%clk 0:20:47]} 34. Ke2 {[%clk 0:14:11]} Ng6  {[%clk 0:16:00]} 1/2-1/2

[Event "SUNWAY"]
[Date "2016.12.19"]
[Round "5.13"]
[White "Harsha Bharathakoti"]
[Black "Aroshidze, Levan"]
[Result "0-1"]
[WhiteElo "2332"]
[BlackElo "2517"]
[ECO "B40"]
[WhiteFed "IND"]
[BlackFed "ESP"]
[FCGameId "834471395"]
[TimeControl "5400+30"]

1. e4 c5 {[%clk 1:26:45]} 2. Nf3 {[%clk 1:30:14]} e6 {[%clk 1:27:07]} 3. g3  {[%clk 1:30:39]} Nc6 {[%clk 1:23:50]} 4. Bg2 {[%clk 1:30:59]} Nf6  {[%clk 1:24:14]} 5. Qe2 {[%clk 1:31:21]} d5 6. exd5 {[%clk 1:31:01]} Nxd5  {[%clk 1:23:51]} 7. O-O {[%clk 1:31:27]} Be7 {[%clk 1:24:16]} 8. Rd1  {[%clk 1:31:54]} Qb6 {[%clk 1:24:24]} 9. c3 {[%clk 1:32:04]} Bd7 10. Na3  {[%clk 1:11:53]} O-O {[%clk 1:20:00]} 11. Nc4 {[%clk 1:11:59]} Qa6 12. d3  {[%clk 1:11:27]} Rad8 {[%clk 1:18:33]} 13. Nce5 {[%clk 1:01:38]} Nxe5  {[%clk 1:16:41]} 14. Nxe5 {[%clk 1:02:01]} Be8 {[%clk 1:05:43]} 15. Bd2  {[%clk 0:46:31]} f6 {[%clk 0:52:34]} 16. Nf3 {[%clk 0:43:36]} Bf7  {[%clk 0:47:48]} 17. c4 {[%clk 0:30:23]} Nc7 {[%clk 0:38:07]} 18. Bc3  {[%clk 0:30:23]} e5 {[%clk 0:37:35]} 19. Nh4 {[%clk 0:30:42]} Rfe8  {[%clk 0:37:43]} 20. f4 {[%clk 0:20:44]} exf4 {[%clk 0:22:06]} 21. gxf4  {[%clk 0:20:42]} Ne6 22. Qg4 {[%clk 0:15:49]} Qd6 {[%clk 0:17:52]} 23. f5  {[%clk 0:14:59]} Nf4 {[%clk 0:16:28]} 24. Nf3 Bf8 {[%clk 0:16:28]} 25. Rd2 Re3  {[%clk 0:16:28]} 26. Rf1 Ne2+ {[%clk 0:16:28]} 27. Kf2 h5 {[%clk 0:16:28]} 28.  Qh4 Rde8 {[%clk 0:16:28]} 29. Re1 Nf4 {[%clk 0:16:28]} 30. Bf1 g5  {[%clk 0:16:28]} 31. fxg6 Nxg6 {[%clk 0:16:28]} 32. Qxh5 Ne5 {[%clk 0:16:28]}  0-1

[Event "SUNWAY"]
[Date "2016.12.19"]
[Round "5.14"]
[White "Saravanan, V."]
[Black "Narciso Dublan, Marc"]
[Result "0-1"]
[WhiteElo "2306"]
[BlackElo "2508"]
[ECO "A04"]
[WhiteFed "IND"]
[BlackFed "ESP"]
[FCGameId "2065385595"]
[TimeControl "5400+30"]

1. Nf3 {[%clk 1:28:21]} f5 {[%clk 1:30:39]} 2. c4 {[%clk 1:28:05]} Nf6  {[%clk 1:30:42]} 3. Nc3 {[%clk 1:28:12]} e6 {[%clk 1:30:58]} 4. d4  {[%clk 1:27:50]} Bb4 {[%clk 1:31:14]} 5. g3 {[%clk 1:27:12]} b6 {[%clk 1:23:29]}  6. Bg2 {[%clk 1:27:31]} Bb7 {[%clk 1:23:54]} 7. O-O {[%clk 1:27:21]} Bxc3  {[%clk 1:23:40]} 8. bxc3 {[%clk 1:27:44]} O-O 9. d5 {[%clk 1:18:26]} Ne4  {[%clk 1:10:30]} 10. dxe6 {[%clk 1:05:28]} dxe6 {[%clk 1:04:08]} 11. Ng5 Qe8  {[%clk 0:59:47]} 12. Nxe4 {[%clk 0:52:14]} fxe4 {[%clk 0:56:38]} 13. Qc2  {[%clk 0:51:37]} Qc6 {[%clk 0:47:24]} 14. Ba3 {[%clk 0:50:14]} Rf7 15. Rad1  {[%clk 0:42:32]} Nd7 {[%clk 0:47:33]} 16. Rd4 {[%clk 0:40:29]} Nf6  {[%clk 0:47:23]} 17. Rfd1 h6 {[%clk 0:38:26]} 18. Rd8+ {[%clk 0:34:00]} Rxd8  {[%clk 0:38:33]} 19. Rxd8+ {[%clk 0:34:24]} Kh7 {[%clk 0:38:53]} 20. Rb8  {[%clk 0:33:55]} Ba6 {[%clk 0:33:25]} 21. c5 {[%clk 0:34:19]} Qd5 22. c4  {[%clk 0:30:27]} Qxc4 {[%clk 0:24:08]} 23. Qxc4 {[%clk 0:30:51]} Bxc4  {[%clk 0:24:22]} 24. Rb7 Rd7 {[%clk 0:15:45]} 25. h3 {[%clk 0:30:47]} Bxe2  {[%clk 0:09:28]} 26. Rxa7 Bf3 {[%clk 0:06:55]} 27. cxb6 {[%clk 0:14:46]} Rd1+  {[%clk 0:06:15]} 28. Kh2 {[%clk 0:15:11]} cxb6 {[%clk 0:06:33]} 29. Bb2  {[%clk 0:10:14]} Kg6 {[%clk 0:05:48]} 30. Bc3 {[%clk 0:09:54]} Rd3  {[%clk 0:04:41]} 31. Bb4 {[%clk 0:10:20]} Nd5 {[%clk 0:03:48]} 32. Bf8  {[%clk 0:08:20]} Rd2 {[%clk 0:03:14]} 33. Bxf3 {[%clk 0:06:31]} Rxf2+  {[%clk 0:00:34]} 34. Bg2 {[%clk 0:06:57]} Ne3 {[%clk 0:00:56]} 35. Rxg7+  {[%clk 0:05:41]} Kf6 {[%clk 0:01:23]} 36. Kh1 {[%clk 0:04:25]} Nxg2  {[%clk 0:00:35]} 37. Ra7 {[%clk 0:03:27]} e5 {[%clk 0:00:32]} 38. Bxh6  {[%clk 0:00:35]} e3 {[%clk 0:00:55]} 0-1

[Event "SUNWAY"]
[Date "2016.12.19"]
[Round "5.15"]
[White "Santos Ruiz, Miguel"]
[Black "Collas, Didier"]
[Result "1/2-1/2"]
[WhiteElo "2484"]
[BlackElo "2399"]
[ECO "B90"]
[WhiteFed "ESP"]
[BlackFed "FRA"]
[FCGameId "563826227"]
[TimeControl "5400+30"]

1. e4 c5 2. Nf3 d6 3. d4 cxd4 4. Nxd4 Nf6 5. Nc3 a6 6. h3 e6 7. g4 h6 8. Bg2 Qb6  9. O-O Nc6 10. Be3 Qc7 11. f4 Bd7 12. Qf3 Be7 13. g5 hxg5 14. Nxc6 gxf4 15. Nxe7  fxe3 16. Ned5 exd5 17. Nxd5 Qd8 18. Qxe3 Nxd5 19. exd5+ Kf8 20. Qf4 Be8 21. Rae1  Rh6 22. Re6 Rf6 23. Rxf6 Qxf6 24. Qxf6 gxf6 25. Rxf6 Ke7 26. Rf4 Rc8 27. c3 Bd7  28. Kf2 b5 29. a3 Rh8 30. h4 f5 31. Bf3 Kf6 32. Rd4 Be8 33. Ke3 Ke5 34. h5 Bf7  35. Rh4 Rh7 36. a4 bxa4 37. Rxa4 Bxh5 38. Rxa6 Bxf3 39. Kxf3 Rh3+ {-error}  1/2-1/2

[Event "SUNWAY"]
[Date "2016.12.19"]
[Round "5.16"]
[White "Burmakin, Vladimir"]
[Black "Meister, Peter"]
[Result "1-0"]
[WhiteElo "2535"]
[BlackElo "2366"]
[ECO "A04"]
[WhiteFed "RUS"]
[BlackFed "GER"]
[FCGameId "343454680"]
[TimeControl "5400+30"]

1. Nf3 g6 2. g3 Bg7 3. Bg2 d5 4. c4 dxc4 5. Qa4+ c6 6. Qxc4 Nf6 7. Nc3 O-O 8.  O-O Nbd7 9. d3 {[%clk 1:28:26]} Qa5 10. Bd2 Qh5 11. Qh4 Qxh4 12. Nxh4 Rd8 13.  Rab1 Nb6 14. Rfc1 Be6 15. Nf3 h6 16. b4 Nfd5 17. a3 Nxc3 18. Bxc3 Rac8 19. Bxg7  Kxg7 20. Nd2 a6 21. Ne4 Na4 22. Nc5 Nxc5 23. bxc5 Rc7 24. Rb4 f5 25. Rcb1 Bc8  26. f4 Rcd7 27. Kf2 Kf6 28. Ke3 e5 29. fxe5+ Kxe5 30. g4 Rd4 31. gxf5 gxf5 32.  Bf3 a5 33. R4b3 Rh4 34. Rh1 f4+ 35. Kd2 Kd4 36. Rc1 Be6 37. Rxb7 Bd5 38. Bxd5  Kxd5 39. Rc4 Rxh2 40. Rxf4 Kxc5 41. Kc3 Re8 42. e4 Rh3 43. Rf5+ Kd6 44. Kd4 Re6  45. Rff7 c5+ 46. Kc4 Kc6 47. Rfc7+ Kd6 48. Rxc5 {-error} 1-0

[Event "SUNWAY"]
[Date "2016.12.19"]
[Round "5.17"]
[White "Del Rio De Angelis, Salvador G."]
[Black "Panelo, Marcelo"]
[Result "1/2-1/2"]
[WhiteElo "2530"]
[BlackElo "2372"]
[ECO "E56"]
[WhiteFed "ESP"]
[BlackFed "ARG"]
[FCGameId "-1557751879"]
[TimeControl "5400+30"]

1. d4 Nf6 2. c4 e6 3. Nc3 Bb4 4. e3 O-O 5. Bd3 c5 6. Nf3 d5 7. O-O Nc6 8. Re1  dxc4 9. Bxc4 Qe7 10. Qe2 a6 11. a3 Ba5 12. Bd2 Bc7 13. Rac1 Rd8 14. dxc5 Qxc5  15. Bd3 Qd6 16. Bb1 Bd7 17. Red1 1/2-1/2

[Event "SUNWAY"]
[Date "2016.12.18"]
[Round "4.1"]
[White "Van Foreest, Jorden"]
[Black "Sasikiran, Krishnan"]
[Result "1/2-1/2"]
[WhiteElo "2605"]
[BlackElo "2661"]
[ECO "B90"]
[WhiteFed "NED"]
[BlackFed "IND"]
[FCGameId "273282049"]
[TimeControl "5400+30"]

1. e4 {[%clk 1:29:33]} c5 {[%clk 1:29:40]} 2. Nf3 {[%clk 1:29:48]} d6  {[%clk 1:30:01]} 3. d4 {[%clk 1:30:12]} cxd4 {[%clk 1:30:22]} 4. Nxd4  {[%clk 1:30:37]} Nf6 {[%clk 1:30:45]} 5. Nc3 {[%clk 1:31:00]} a6  {[%clk 1:30:56]} 6. Rg1 {[%clk 1:31:01]} e5 {[%clk 1:26:01]} 7. Nb3  {[%clk 1:31:23]} Be6 {[%clk 1:24:07]} 8. g4 {[%clk 1:31:40]} d5 {[%clk 1:23:33]}  9. exd5 {[%clk 1:31:59]} Nxd5 {[%clk 1:23:42]} 10. Nxd5 {[%clk 1:32:14]} Qxd5  {[%clk 1:21:36]} 11. Qxd5 {[%clk 1:32:28]} Bxd5 {[%clk 1:22:01]} 12. Be3  {[%clk 1:32:49]} Nc6 {[%clk 1:10:48]} 13. O-O-O {[%clk 1:32:42]} O-O-O  {[%clk 1:09:08]} 14. Bb6 {[%clk 1:32:38]} Rd6 {[%clk 1:03:44]} 15. a3  {[%clk 1:32:58]} Bxb3 {[%clk 0:51:04]} 16. Rxd6 {[%clk 1:31:45]} Bxd6  {[%clk 0:51:23]} 17. cxb3 {[%clk 1:32:11]} Bc7 {[%clk 0:49:58]} 18. Be3  {[%clk 1:27:00]} Nd4 {[%clk 0:48:26]} 19. Bxd4 {[%clk 1:13:25]} exd4  {[%clk 0:48:30]} 1/2-1/2

[Event "SUNWAY"]
[Date "2016.12.18"]
[Round "4.2"]
[White "Aroshidze, Levan"]
[Black "Granda Zuniga, Julio E"]
[Result "0-1"]
[WhiteElo "2517"]
[BlackElo "2646"]
[ECO "B12"]
[WhiteFed "ESP"]
[BlackFed "PER"]
[FCGameId "2082585811"]
[TimeControl "5400+30"]

1. e4 {[%clk 1:30:04]} c6 {[%clk 1:30:48]} 2. d4 {[%clk 1:30:28]} d5  {[%clk 1:31:09]} 3. e5 {[%clk 1:30:53]} Bf5 {[%clk 1:31:30]} 4. Nf3  {[%clk 1:31:16]} e6 {[%clk 1:31:36]} 5. Be2 {[%clk 1:31:39]} Nd7  {[%clk 1:27:48]} 6. O-O {[%clk 1:31:58]} Bg6 {[%clk 1:27:20]} 7. Nbd2  {[%clk 1:30:19]} Nh6 8. Nb3 {[%clk 1:15:58]} Be7 {[%clk 1:25:40]} 9. a4  {[%clk 1:16:11]} O-O {[%clk 1:25:16]} 10. a5 {[%clk 1:16:20]} f6  {[%clk 1:24:32]} 11. c4 {[%clk 0:47:14]} Nf7 {[%clk 0:36:07]} 12. Bf4 fxe5  {[%clk 0:18:14]} 13. dxe5 {[%clk 0:46:33]} Nfxe5 {[%clk 0:18:15]} 14. Nxe5  {[%clk 0:09:23]} Rxf4 {[%clk 0:18:28]} 15. Nxg6 {[%clk 0:09:17]} hxg6  {[%clk 0:18:57]} 16. Nd4 {[%clk 0:09:31]} Nf8 {[%clk 0:15:24]} 17. a6  {[%clk 0:05:32]} Qb6 {[%clk 0:14:39]} 18. axb7 {[%clk 0:05:41]} Rb8  {[%clk 0:14:39]} 19. Nf3 {[%clk 0:04:40]} Rxb7 {[%clk 0:14:30]} 20. Qd2  {[%clk 0:03:54]} Rf7 {[%clk 0:13:04]} 21. cxd5 {[%clk 0:02:52]} cxd5  {[%clk 0:13:12]} 22. Bd3 {[%clk 0:02:00]} Bf6 {[%clk 0:13:13]} 23. Rfe1  {[%clk 0:01:18]} Qxb2 {[%clk 0:12:52]} 24. Qe3 {[%clk 0:01:46]} Qb6  {[%clk 0:10:20]} 25. Ra6 {[%clk 0:02:15]} Qxe3 {[%clk 0:10:29]} 26. fxe3  {[%clk 0:02:43]} Rb3 {[%clk 0:08:04]} 27. Rd1 {[%clk 0:03:12]} Rc7  {[%clk 0:07:56]} 28. e4 {[%clk 0:02:57]} Rxd3 {[%clk 0:07:46]} 29. Rxd3  {[%clk 0:03:24]} dxe4 {[%clk 0:08:10]} 0-1

[Event "SUNWAY"]
[Date "2016.12.18"]
[Round "4.3"]
[White "Esplugas Esteve, Vicenc"]
[Black "Postny, Evgeny"]
[Result "1/2-1/2"]
[WhiteElo "2280"]
[BlackElo "2620"]
[ECO "D10"]
[WhiteFed "ESP"]
[BlackFed "ISR"]
[FCGameId "1141789387"]
[TimeControl "5400+30"]

1. d4 d5 2. c4 c6 3. Nc3 dxc4 4. e4 b5 5. a4 b4 6. Na2 Nf6 7. e5 Nd5 8. Bxc4 e6  9. Nf3 Be7 10. Bd2 a5 11. Nc1 Ba6 12. Qe2 O-O 13. Bd3 h6 14. Qe4 Bxd3 15. Nxd3  Nd7 16. h4 f5 17. exf6 Rxf6 18. Nde5 Nf8 19. Ng4 Rf5 20. Bxh6 Nf6 21. Nxf6+ Bxf6  22. Bg5 Bxg5 23. hxg5 Qd5 24. Qxd5 cxd5 25. Kd2 1/2-1/2

[Event "SUNWAY"]
[Date "2016.12.18"]
[Round "4.4"]
[White "Ivanisevic, Ivan"]
[Black "Petrov, Nikita"]
[Result "1-0"]
[WhiteElo "2648"]
[BlackElo "2512"]
[ECO "A20"]
[WhiteFed "SRB"]
[BlackFed "RUS"]
[FCGameId "690591514"]
[TimeControl "5400+30"]

1. c4 {[%clk 1:30:24]} e5 {[%clk 1:30:41]} 2. Nf3 {[%clk 1:30:28]} e4  {[%clk 1:30:24]} 3. Nd4 {[%clk 1:30:54]} Nc6 {[%clk 1:29:43]} 4. Nc2  {[%clk 1:30:36]} Nf6 {[%clk 1:27:56]} 5. Nc3 {[%clk 1:30:25]} Bc5  {[%clk 1:24:53]} 6. g3 {[%clk 1:25:37]} O-O {[%clk 1:17:58]} 7. Bg2  {[%clk 1:25:49]} Re8 {[%clk 1:18:20]} 8. O-O d6 {[%clk 1:17:32]} 9. b3  {[%clk 1:24:09]} Bf5 {[%clk 1:11:22]} 10. Ne3 {[%clk 1:19:34]} Bg6  {[%clk 1:03:07]} 11. Bb2 {[%clk 1:18:34]} a5 {[%clk 0:50:46]} 12. Rc1  {[%clk 1:15:25]} Nd4 {[%clk 0:44:56]} 13. Ncd5 {[%clk 1:08:12]} Nxd5  {[%clk 0:43:56]} 14. cxd5 {[%clk 1:07:26]} b5 {[%clk 0:39:53]} 15. h4  {[%clk 0:38:27]} a4 {[%clk 0:33:16]} 16. b4 {[%clk 0:36:38]} Bb6  {[%clk 0:30:18]} 17. Nc2 {[%clk 0:33:29]} Nxc2 {[%clk 0:24:08]} 18. Rxc2  {[%clk 0:33:54]} a3 {[%clk 0:24:24]} 19. Bc3 {[%clk 0:33:08]} Qd7  {[%clk 0:22:48]} 20. e3 {[%clk 0:29:01]} f6 {[%clk 0:18:58]} 21. h5  {[%clk 0:26:01]} Bf7 {[%clk 0:19:08]} 22. h6 Bxd5 {[%clk 0:19:26]} 23. hxg7  {[%clk 0:26:36]} Qxg7 {[%clk 0:18:39]} 24. d3 {[%clk 0:24:27]} Qf7  {[%clk 0:09:11]} 25. Qg4+ {[%clk 0:23:34]} Qg6 {[%clk 0:08:53]} 26. Qxg6+  {[%clk 0:20:57]} hxg6 27. Bxf6 {[%clk 0:21:23]} Ra4 {[%clk 0:08:15]} 28. Rb1  {[%clk 0:21:23]} Ba8 {[%clk 0:07:55]} 29. d4 {[%clk 0:17:33]} Bd5  {[%clk 0:07:10]} 30. Bh3 {[%clk 0:17:00]} Bc4 {[%clk 0:06:04]} 31. Bd7  {[%clk 0:11:13]} Bd3 {[%clk 0:05:54]} 32. Bxe8 {[%clk 0:10:29]} Bxc2  {[%clk 0:06:17]} 33. Rc1 {[%clk 0:10:21]} Bd3 {[%clk 0:06:33]} 34. Kg2  {[%clk 0:10:06]} Be2 {[%clk 0:05:30]} 35. Rb1 {[%clk 0:07:47]} g5  {[%clk 0:03:23]} 36. Bxg5 {[%clk 0:04:53]} Kg7 {[%clk 0:03:05]} 37. Bc6  {[%clk 0:04:56]} Bd3 {[%clk 0:02:45]} 38. Rh1 {[%clk 0:02:23]} Rxb4  {[%clk 0:00:59]} 39. g4 {[%clk 0:01:50]} Rb1 {[%clk 0:00:55]} 40. Rh6  {[%clk 0:31:32]} b4 {[%clk 0:30:45]} 41. Re6 {[%clk 0:24:58]} b3  {[%clk 0:25:18]} 42. Re7+ {[%clk 0:24:08]} Kf8 {[%clk 0:23:21]} 43. Re8+  {[%clk 0:21:59]} Kf7 {[%clk 0:21:47]} 44. Re7+ {[%clk 0:20:40]} Kf8  {[%clk 0:22:12]} 45. Bd5 {[%clk 0:10:05]} b2 {[%clk 0:19:29]} 46. Rf7+  {[%clk 0:06:45]} Ke8 {[%clk 0:19:45]} 47. Rg7 {[%clk 0:05:37]} Rg1+  {[%clk 0:15:14]} 48. Kxg1 {[%clk 0:06:04]} b1=Q+ {[%clk 0:15:36]} 49. Kh2  {[%clk 0:06:16]} c6 {[%clk 0:15:35]} 50. Be6 {[%clk 0:06:32]} 1-0

[Event "SUNWAY"]
[Date "2016.12.18"]
[Round "4.5"]
[White "Romanov, Evgeny"]
[Black "Krysa, Leandro"]
[Result "1-0"]
[WhiteElo "2622"]
[BlackElo "2491"]
[ECO "A45"]
[WhiteFed "RUS"]
[BlackFed "ARG"]
[FCGameId "485448359"]
[TimeControl "5400+30"]

1. d4 {[%clk 1:19:43]} Nf6 {[%clk 1:30:45]} 2. Bg5 {[%clk 1:20:03]} e6  {[%clk 1:30:46]} 3. Nd2 {[%clk 1:20:24]} h6 {[%clk 1:30:47]} 4. Bh4  {[%clk 1:20:46]} Nc6 {[%clk 1:30:51]} 5. e3 {[%clk 1:20:03]} d6 {[%clk 1:30:23]}  6. Bd3 {[%clk 1:11:02]} Bd7 {[%clk 1:30:04]} 7. c3 {[%clk 1:08:20]} g5  {[%clk 1:29:06]} 8. Bg3 {[%clk 1:08:13]} Bg7 {[%clk 1:29:23]} 9. b4  {[%clk 1:02:23]} Ne7 {[%clk 1:21:01]} 10. e4 {[%clk 0:59:43]} Ng6  {[%clk 1:14:34]} 11. e5 {[%clk 0:52:33]} dxe5 {[%clk 1:10:55]} 12. dxe5  {[%clk 0:52:43]} Nd5 {[%clk 1:06:37]} 13. Bxg6 {[%clk 0:53:05]} fxg6  {[%clk 1:06:55]} 14. Qc2 {[%clk 0:53:28]} O-O {[%clk 1:03:23]} 15. Ngf3  {[%clk 0:44:25]} a5 {[%clk 0:42:01]} 16. bxa5 {[%clk 0:39:48]} Rxa5  {[%clk 0:35:04]} 17. O-O Qe8 {[%clk 0:21:06]} 18. Rfe1 {[%clk 0:37:35]} Ba4  {[%clk 0:14:01]} 19. Nb3 {[%clk 0:34:41]} Rc5 {[%clk 0:12:40]} 20. c4  {[%clk 0:28:52]} b5 {[%clk 0:10:46]} 21. Nxc5 {[%clk 0:27:02]} Bxc2  {[%clk 0:11:05]} 22. cxd5 {[%clk 0:27:28]} exd5 {[%clk 0:08:09]} 23. Rac1  {[%clk 0:27:52]} Bf5 {[%clk 0:06:58]} 24. Nd4 {[%clk 0:25:57]} h5  {[%clk 0:03:43]} 25. h3 {[%clk 0:25:40]} g4 {[%clk 0:02:54]} 26. hxg4  {[%clk 0:23:17]} Bxg4 {[%clk 0:03:07]} 27. Na6 {[%clk 0:23:20]} Bh6  {[%clk 0:03:20]} 28. Nxc7 {[%clk 0:20:48]} Bxc1 {[%clk 0:03:23]} 29. Nxe8  {[%clk 0:19:52]} Bd2 {[%clk 0:03:41]} 30. Rb1 {[%clk 0:04:29]} Rxe8  {[%clk 0:04:08]} 31. Rxb5 {[%clk 0:04:54]} Bc3 {[%clk 0:02:27]} 32. Rxd5  {[%clk 0:04:37]} Bxd4 {[%clk 0:02:33]} 33. Rxd4 {[%clk 0:05:06]} g5  {[%clk 0:02:31]} 34. f3 {[%clk 0:04:17]} Be6 {[%clk 0:02:49]} 35. a4  {[%clk 0:04:16]} Rc8 {[%clk 0:00:36]} 36. Be1 {[%clk 0:04:25]} Rc1  {[%clk 0:00:32]} 37. Kf2 {[%clk 0:04:47]} Kf7 {[%clk 0:00:31]} 38. Bd2  {[%clk 0:04:07]} Rc2 {[%clk 0:00:53]} 39. a5 {[%clk 0:02:58]} Ra2  {[%clk 0:00:57]} 40. Rd6 {[%clk 0:33:16]} g4 {[%clk 0:30:31]} 41. Kg3 gxf3  {[%clk 0:17:50]} 42. gxf3 {[%clk 0:29:59]} Ra3 {[%clk 0:18:15]} 43. Rd4  {[%clk 0:29:06]} Ke8 {[%clk 0:14:23]} 44. Bb4 {[%clk 0:27:34]} Ra1  {[%clk 0:13:25]} 45. Kh4 {[%clk 0:25:11]} Rf1 {[%clk 0:09:34]} 46. Rd3  {[%clk 0:19:29]} Bc4 {[%clk 0:08:38]} 47. Rd4 {[%clk 0:16:24]} Be6  {[%clk 0:07:14]} 48. Rd6 {[%clk 0:10:02]} Kf7 {[%clk 0:06:02]} 49. a6  {[%clk 0:05:54]} Rxf3 {[%clk 0:05:46]} 50. Rxe6 {[%clk 0:05:15]} Kxe6  {[%clk 0:00:33]} 51. a7 {[%clk 0:05:40]} Rf4+ {[%clk 0:00:36]} 52. Kxh5  {[%clk 0:05:48]} Rxb4 {[%clk 0:00:44]} 53. a8=Q {[%clk 0:06:11]} Rb6  {[%clk 0:00:31]} 54. Qc8+ {[%clk 0:04:42]} Kd5 {[%clk 0:00:32]} 55. Qd8+  {[%clk 0:05:01]} 1-0

[Event "SUNWAY"]
[Date "2016.12.18"]
[Round "4.6"]
[White "Edouard, Romain"]
[Black "Santos Ruiz, Miguel"]
[Result "1/2-1/2"]
[WhiteElo "2611"]
[BlackElo "2484"]
[ECO "A22"]
[WhiteFed "FRA"]
[BlackFed "ESP"]
[FCGameId "-1057506143"]
[TimeControl "5400+30"]

1. c4 {[%clk 1:25:19]} Nf6 {[%clk 1:30:39]} 2. Nc3 {[%clk 1:25:42]} e5  {[%clk 1:31:03]} 3. g3 {[%clk 1:25:44]} Bb4 {[%clk 1:30:49]} 4. Bg2  {[%clk 1:25:04]} O-O {[%clk 1:30:55]} 5. d3 {[%clk 1:14:56]} c6 {[%clk 1:24:45]}  6. Qb3 {[%clk 1:13:21]} Na6 {[%clk 1:14:38]} 7. Nf3 {[%clk 1:04:33]} d5  {[%clk 1:04:29]} 8. a3 {[%clk 1:01:39]} Ba5 {[%clk 1:00:26]} 9. O-O  {[%clk 1:01:19]} d4 {[%clk 0:48:32]} 10. Nb1 {[%clk 1:01:28]} Bc7  {[%clk 0:46:44]} 11. Qc2 {[%clk 1:00:56]} Nb8 {[%clk 0:45:56]} 12. Bg5  {[%clk 0:56:07]} h6 {[%clk 0:38:54]} 13. Bxf6 {[%clk 0:56:29]} Qxf6  {[%clk 0:39:21]} 14. Nbd2 {[%clk 0:56:42]} a5 {[%clk 0:37:36]} 15. b4  {[%clk 0:57:06]} Qe7 {[%clk 0:30:10]} 16. Rab1 {[%clk 0:50:17]} Be6  {[%clk 0:26:13]} 17. e3 {[%clk 0:42:42]} dxe3 {[%clk 0:25:21]} 18. fxe3  {[%clk 0:43:11]} axb4 {[%clk 0:25:00]} 19. axb4 {[%clk 0:43:39]} Nd7  {[%clk 0:23:40]} 20. Qc3 {[%clk 0:35:31]} 1/2-1/2